Workbook

Sheet temp
A1: 都匀市2023年公开选聘城市社区工作者总成绩排名及进入体检环节人员名单
A2: 序号 | B2: 准考证号 | C2: 姓名 | D2: 选聘单位名称及岗位代码 | E2: 笔试成绩 | F2: 加分成绩 | G2: 笔试环节成绩 | H2: 笔试环节成绩折算 | I2: 面试成绩 | J2: 面试折算成绩 | K2: 总成绩 | L2: 总成绩排名 | M2: 是否进入体检环节 | N2: 备注
A3: 1 | B3: 202311250120 | C3: 罗永杰 | D3: 小围寨街道办事处202310102 | E3: 85.94 | G3: =E3+F3 -> 85.94 | H3: =ROUND(G3*0.5,2) -> 42.97 | I3: 82.20 | J3: =ROUND(I3*0.5,2) -> 41.10 | K3: =ROUND((H3+J3),2) -> 84.07 | L3: 1 | M3: 是
A4: 2 | B4: 202311250113 | C4: 石剑兰 | D4: 小围寨街道办事处202310102 | E4: 82.78 | G4: 82.78 | H4: 41.39 | I4: 81.20 | J4: =ROUND(I4*0.5,2) -> 40.60 | K4: =ROUND((H4+J4),2) -> 81.99 | L4: 2 | M4: 是
A5: 3 | B5: 202311250108 | C5: 吴浩 | D5: 小围寨街道办事处202310102 | E5: 81.86 | G5: 81.86 | H5: 40.93 | I5: 82.00 | J5: =ROUND(I5*0.5,2) -> 41.00 | K5: =ROUND((H5+J5),2) -> 81.93 | L5: 3
A6: 4 | B6: 202311250129 | C6: 罗珍红 | D6: 小围寨街道办事处202310102 | E6: 79.94 | G6: 79.94 | H6: 39.97 | I6: 79.00 | J6: =ROUND(I6*0.5,2) -> 39.50 | K6: =ROUND((H6+J6),2) -> 79.47 | L6: 4
A7: 5 | B7: 202311250216 | C7: 蒙应柳 | D7: 小围寨街道办事处202310102 | E7: 76.61 | G7: 76.61 | H7: 38.31 | I7: 79.50 | J7: =ROUND(I7*0.5,2) -> 39.75 | K7: =ROUND((H7+J7),2) -> 78.06 | L7: 5
A8: 6 | B8: 202311250105 | C8: 杨兴玥 | D8: 小围寨街道办事处202310102 | E8: 78.33 | G8: 78.33 | H8: 39.17 | I8: —— | J8: —— | K8: —— | N8: 缺考
A9: 7 | B9: 202311250220 | C9: 屠莹潞 | D9: 绿茵湖街道办事处202310201 | E9: 85.36 | F9: 1 | G9: 86.36 | H9: 43.18 | I9: 80.40 | J9: =ROUND(I9*0.5,2) -> 40.20 | K9: =ROUND((H9+J9),2) -> 83.38 | L9: 1 | M9: 是
A10: 8 | B10: 202311250227 | C10: 周进 | D10: 墨冲镇人民政府202310401 | E10: 80.69 | G10: 80.69 | H10: 40.35 | I10: 67.70 | J10: 33.85 | K10: 74.20 | L10: 1 | M10: 是
A11: 9 | B11: 202311250223 | C11: 陈明静 | D11: 墨冲镇人民政府202310402 | E11: 81.70 | G11: 81.7 | H11: 40.85 | I11: 73.60 | J11: 36.80 | K11: 77.65 | L11: 1 | M11: 是
A12: 10 | B12: 202311250224 | C12: 陆世萍 | D12: 墨冲镇人民政府202310402 | E12: 77.94 | G12: 77.94 | H12: 38.97 | I12: 74.30 | J12: 37.15 | K12: 76.12 | L12: 2
A13: 11 | B13: 202311250229 | C13: 张仕敏 | D13: 墨冲镇人民政府202310402 | E13: 74.41 | G13: 74.41 | H13: 37.21 | I13: 75.40 | J13: 37.70 | K13: 74.91 | L13: 3
A14: 12 | B14: 202311250814 | C14: 吕翠 | D14: 沙包堡街道办事处202310301 | E14: 89.25 | G14: 89.25 | H14: 44.63 | I14: 89.4 | J14: 44.70 | K14: 89.33 | L14: 1 | M14: 是
A15: 13 | B15: 202311250601 | C15: 何孝清 | D15: 沙包堡街道办事处202310301 | E15: 88.30 | G15: 88.3 | H15: 44.15 | I15: 83.6 | J15: 41.80 | K15: 85.95 | L15: 2 | M15: 是
A16: 14 | B16: 202311250427 | C16: 朱君 | D16: 沙包堡街道办事处202310301 | E16: 86.00 | G16: 86 | H16: 43 | I16: 84.3 | J16: 42.15 | K16: 85.15 | L16: 3 | M16: 是
A17: 15 | B17: 202311250327 | C17: 黄有志 | D17: 沙包堡街道办事处202310301 | E17: 87.08 | G17: 87.08 | H17: 43.54 | I17: 80.6 | J17: 40.30 | K17: 83.84 | L17: 4 | M17: 是
A18: 16 | B18: 202311250808 | C18: 罗章美 | D18: 沙包堡街道办事处202310301 | E18: 87.47 | G18: 87.47 | H18: 43.74 | I18: 78.2 | J18: 39.10 | K18: 82.84 | L18: 5 | M18: 是
A19: 17 | B19: 202311250710 | C19: 王兴童 | D19: 沙包堡街道办事处202310301 | E19: 83.55 | G19: 83.55 | H19: 41.78 | I19: 82.1 | J19: 41.05 | K19: 82.83 | L19: 6
A20: 18 | B20: 202311250410 | C20: 王晓晓 | D20: 沙包堡街道办事处202310301 | E20: 79.83 | G20: 79.83 | H20: 39.92 | I20: 85.8 | J20: 42.90 | K20: 82.82 | L20: 7
A21: 19 | B21: 202311250307 | C21: 张元元 | D21: 沙包堡街道办事处202310301 | E21: 82.08 | G21: 82.08 | H21: 41.04 | I21: 79.2 | J21: 39.60 | K21: 80.64 | L21: 8
A22: 20 | B22: 202311250303 | C22: 吴友芳 | D22: 沙包堡街道办事处202310301 | E22: 83.22 | G22: 83.22 | H22: 41.61 | I22: 76.5 | J22: 38.25 | K22: 79.86 | L22: 9
A23: 21 | B23: 202311250612 | C23: 郭杰 | D23: 沙包堡街道办事处202310301 | E23: 79.91 | G23: 79.91 | H23: 39.96 | I23: 75.6 | J23: 37.80 | K23: 77.76 | L23: 10
A24: 22 | B24: 202311250622 | C24: 张国敏 | D24: 沙包堡街道办事处202310301 | E24: 79.05 | F24: 1 | G24: 80.05 | H24: 40.03 | I24: 74.30 | J24: 37.15 | K24: 77.18 | L24: 11
A25: 23 | B25: 202311250703 | C25: 丁杨 | D25: 沙包堡街道办事处202310301 | E25: 84.11 | G25: 84.11 | H25: 42.06 | I25: 70.1 | J25: 35.05 | K25: 77.11 | L25: 12
A26: 24 | B26: 202311250310 | C26: 赵匀霞 | D26: 沙包堡街道办事处202310301 | E26: 82.97 | G26: 82.97 | H26: 41.49 | I26: 70.6 | J26: 35.30 | K26: 76.79 | L26: 13
A27: 25 | B27: 202311250422 | C27: 吴兴雪 | D27: 沙包堡街道办事处202310301 | E27: 80.69 | G27: 80.69 | H27: 40.35 | I27: 69.6 | J27: 34.80 | K27: 75.15 | L27: 14
A28: 26 | B28: 202311250707 | C28: 罗会银 | D28: 沙包堡街道办事处202310301 | E28: 81.02 | G28: 81.02 | H28: 40.51 | I28: —— | J28: —— | K28: —— | N28: 缺考
A29: 27 | B29: 202311250312 | C29: 罗国宏 | D29: 沙包堡街道办事处202310302 | E29: 75.50 | G29: 75.5 | H29: 37.75 | I29: 82.7 | J29: =ROUND(I29*0.5,2) -> 41.35 | K29: =ROUND((H29+J29),2) -> 79.10 | L29: 1 | M29: 是
A30: 28 | B30: 202311250712 | C30: 付光琴 | D30: 沙包堡街道办事处202310302 | E30: 76.39 | G30: 76.39 | H30: 38.2 | I30: 80.6 | J30: 40.30 | K30: 78.50 | L30: 2 | M30: 是
A31: 29 | B31: 202311250728 | C31: 舒雅琪 | D31: 沙包堡街道办事处202310302 | E31: 74.22 | G31: 74.22 | H31: 37.11 | I31: 82 | J31: 41.00 | K31: 78.11 | L31: 3 | M31: 是
A32: 30 | B32: 202311250823 | C32: 陈必红 | D32: 沙包堡街道办事处202310302 | E32: 74.58 | G32: 74.58 | H32: 37.29 | I32: 80.1 | J32: 40.05 | K32: 77.34 | L32: 4 | M32: 是
A33: 31 | B33: 202311250709 | C33: 王兴卓 | D33: 沙包堡街道办事处202310302 | E33: 74.42 | G33: 74.42 | H33: 37.21 | I33: 79.9 | J33: 39.95 | K33: 77.16 | L33: 5 | M33: 是
A34: 32 | B34: 202311250726 | C34: 赵珉欢 | D34: 沙包堡街道办事处202310302 | E34: 73.38 | G34: 73.38 | H34: 36.69 | I34: 79.4 | J34: 39.70 | K34: 76.39 | L34: 6
A35: 33 | B35: 202311250723 | C35: 魏荣丹 | D35: 沙包堡街道办事处202310302 | E35: 77.16 | G35: 77.16 | H35: 38.58 | I35: 74.8 | J35: 37.40 | K35: 75.98 | L35: 7
A36: 34 | B36: 202311250620 | C36: 苏锦梅 | D36: 沙包堡街道办事处202310302 | E36: 75.11 | G36: 75.11 | H36: 37.56 | I36: 75.6 | J36: 37.80 | K36: 75.36 | L36: 8
A37: 35 | B37: 202311250822 | C37: 陈岩妍 | D37: 沙包堡街道办事处202310302 | E37: 69.47 | G37: 69.47 | H37: 34.74 | I37: 76.4 | J37: 38.20 | K37: 72.94 | L37: 9
A38: 36 | B38: 202311250301 | C38: 李旭 | D38: 沙包堡街道办事处202310302 | E38: 66.21 | G38: 66.21 | H38: 33.11 | I38: 75.3 | J38: 37.65 | K38: 70.76 | L38: 10
A39: 37 | B39: 202311250423 | C39: 赵文 | D39: 沙包堡街道办事处202310302 | E39: 64.80 | F39: 1 | G39: 65.8 | H39: 32.9 | I39: 74 | J39: 37.00 | K39: 69.90 | L39: 11
A40: 38 | B40: 202311250317 | C40: 王章廷 | D40: 沙包堡街道办事处202310302 | E40: 64.52 | G40: 64.52 | H40: 32.26 | I40: 74.30 | J40: 37.15 | K40: 69.41 | L40: 12
A41: 39 | B41: 202311250706 | C41: 杨丽萍 | D41: 沙包堡街道办事处202310302 | E41: 60.97 | G41: 60.97 | H41: 30.49 | I41: 72.3 | J41: 36.15 | K41: 66.64 | L41: 13
A42: 40 | B42: 202311250429 | C42: 韦琦昭 | D42: 沙包堡街道办事处202310302 | E42: 66.80 | G42: 66.8 | H42: 33.4 | I42: 62 | J42: 31.00 | K42: 64.40 | L42: 14
A43: 41 | B43: 202311250501 | C43: 彭湘 | D43: 沙包堡街道办事处202310302 | E43: 70.74 | G43: 70.74 | H43: 35.37 | I43: —— | J43: —— | K43: —— | N43: 缺考
